fUST/lending_fUST_20241205
["ID","MTS","AMOUNT","RATE_DAILY","PERIOD"]
[344296563,1733331056485,-500.0,0.00025479,7]
[344296564,1733331056497,-500.0,0.00025479,7]
[344296565,1733331056507,-500.0,0.00025479,7]
[344296566,1733331056516,-500.0,0.00025479,7]
[344296567,1733331056526,-1159.1,0.00025479,7]
[344296568,1733331056537,-238.736578,0.00025479,7]
[344296569,1733331056547,-238.736578,0.00025479,7]
[344296570,1733331056557,-493.48970524,0.00025479,7]
[344296571,1733331056567,-720.5,0.00025479,7]
[344296572,1733331056576,-500.0,0.00025479,7]
[344296573,1733331056586,-503.59067072,0.00025479,7]
[344296574,1733331056596,-500.0,0.00025479,7]
[344296575,1733331056605,-500.0,0.00025479,7]
[344296576,1733331056614,-500.0,0.00025479,7]
[344296577,1733331056624,-500.0,0.00025479,7]
[344296578,1733331056635,-500.0,0.00025479,7]
[344296579,1733331056645,-856.58,0.00025479,7]
[344296580,1733331056655,-500.0,0.00025479,7]
[344296581,1733331056665,-500.0,0.00025479,7]
[344296582,1733331056674,-500.0,0.00025479,7]
[344296583,1733331056684,-503.79405591,0.00025479,7]
[344296584,1733331056693,-500.0,0.00025479,7]
[344296585,1733331056703,-500.0,0.00025479,7]
[344296586,1733331056713,-1402.3,0.00025479,7]
[344296587,1733331056724,-528.96651765,0.00025479,7]
[344296588,1733331056735,-500.0,0.00025479,7]
[344296589,1733331056748,-502.09061141,0.00025479,7]
[344296590,1733331056757,-500.0,0.00025479,7]
[344296591,1733331056767,-500.0,0.00025479,7]
[344296592,1733331056777,-500.0,0.00025479,7]
[344296593,1733331056787,-500.0,0.00025479,7]
[344296594,1733331056796,-572.72,0.00025479,7]
[344296595,1733331056807,-500.0,0.00025479,7]
[344296596,1733331056817,-692.0,0.00025479,7]
[344296597,1733331056827,-1434.53,0.00025479,7]
[344296598,1733331056837,-500.0,0.00025479,7]
[344296599,1733331056846,-500.0,0.00025479,7]
[344296600,1733331056856,-500.0,0.00025479,7]
[344296601,1733331056865,-1335.07,0.00025479,7]
[344296602,1733331056879,-151.0,0.00025479,7]
[344296603,1733331056889,-1241.02,0.00025479,7]
[344296604,1733331056899,-500.0,0.00025479,7]
[344296605,1733331056908,-1393.96,0.00025479,7]
[344296606,1733331056919,-500.0,0.00025479,7]
[344296607,1733331056928,-500.0,0.00025479,7]
[344296608,1733331056938,-522.4,0.00025479,7]
[344296609,1733331056948,-500.0,0.00025479,7]
[344296610,1733331056959,-500.0,0.00025479,7]
[344296611,1733331056969,-263.853821,0.00025479,7]
[344296612,1733331056978,-500.0,0.00025479,7]
[344296613,1733331056988,-620.02,0.00025479,7]
[344296614,1733331057003,-500.0,0.00025479,7]
[344296615,1733331057015,-2348.359385,0.00025479,7]
[344296616,1733331057025,-942.07,0.00025479,7]
[344296617,1733331057036,-500.0,0.00025479,7]
[344296618,1733331057048,-500.0,0.00025479,7]
[344296619,1733331057059,-2348.359385,0.00025479,7]
[344296620,1733331057069,-501.38,0.00025479,7]
[344296621,1733331057080,-500.0,0.00025479,7]
[344296622,1733331057091,-500.0,0.00025479,7]
[344296623,1733331057101,-940.36,0.00025479,7]
[344296624,1733331057111,-460.75313678,0.00025479,7]
[344296625,1733331057120,-500.0,0.00025479,7]
[344296626,1733331057130,-500.0,0.00025479,7]
[344296627,1733331057140,-500.0,0.00025479,7]
[344296628,1733331057149,-500.0,0.00025479,7]
[344296629,1733331057159,-500.0,0.00025479,7]
[344296630,1733331057168,-494.52148,0.00025479,7]
[344296631,1733331057178,-500.0,0.00025479,7]
[344296632,1733331057187,-500.0,0.00025479,7]
[344296633,1733331057197,-500.0,0.00025479,7]
[344296634,1733331057206,-500.0,0.00025479,7]
[344296635,1733331057216,-500.0,0.00025479,7]
[344296636,1733331057225,-294.151286,0.00025479,7]
[344296637,1733331057235,-500.0,0.00025479,7]
[344296638,1733331057245,-500.0,0.00025479,7]
[344296639,1733331057259,-500.0,0.00025479,7]
[344296640,1733331057268,-541.2,0.00025479,7]
[344296641,1733331057277,-294.151286,0.00025479,7]
[344296642,1733331057287,-500.0,0.00025479,7]
[344296643,1733331057297,-668.95,0.00025479,7]
[344296644,1733331057307,-614.53,0.00025479,7]
[344296645,1733331057316,-210.25506,0.00025479,7]
[344296646,1733331057325,-500.0,0.00025479,7]
[344296647,1733331057334,-500.0,0.00025479,7]
[344296648,1733331057344,-732.18,0.00025479,7]
[344296649,1733331057353,-210.25506,0.00025479,7]
[344296650,1733331057363,-500.0,0.00025479,7]
[344296651,1733331057373,-500.0,0.00025479,7]
[344296652,1733331057382,-500.0,0.00025479,7]
[344296653,1733331057392,-500.0,0.00025479,7]
[344296654,1733331057401,-500.0,0.00025479,7]
[344296655,1733331057411,-447.19881323,0.00025479,7]
[344296656,1733331057420,-500.0,0.00025479,7]
[344296657,1733331057430,-500.0,0.00025479,7]
[344296658,1733331057439,-500.0,0.00025479,7]
[344296659,1733331057449,-500.0,0.00025479,7]
[344296660,1733331057458,-500.0,0.00025479,7]
[344296661,1733331057467,-539.88978058,0.00025479,2]
[344296662,1733331057477,-500.0,0.00025479,7]
[344296663,1733331057487,-500.0,0.00025479,7]
[344296664,1733331057500,-1219.41,0.00025479,7]
[344296665,1733331057509,-698.01,0.00025479,7]
[344296666,1733331057520,-500.0,0.00025479,7]
[344296667,1733331057530,-500.0,0.00025479,7]
[344296668,1733331057540,-2033.51,0.00025479,7]
[344296669,1733331057551,-154.0,0.00025479,7]
[344296670,1733331057560,-500.0,0.00025479,7]
[344296671,1733331057570,-2896.6,0.00025479,7]
[344296672,1733331057579,-500.0,0.00025479,7]
[344296673,1733331057589,-500.0,0.00025479,7]
[344296674,1733331057599,-506.13617883,0.00025479,7]
[344296675,1733331057609,-500.0,0.00025479,7]
[344296676,1733331057618,-500.0,0.00025479,7]
[344296677,1733331057628,-500.0,0.00025479,7]
[344296678,1733331057637,-500.0,0.00025479,7]
[344296679,1733331057647,-500.0,0.00025479,7]
[344296680,1733331057657,-549.47,0.00025479,7]
[344296681,1733331057667,-500.0,0.00025479,7]
[344296682,1733331057676,-500.0,0.00025479,7]
[344296683,1733331057686,-393.41819285,0.00025479,7]
[344296684,1733331057696,-521.79,0.00025479,7]
[344296685,1733331057706,-500.0,0.00025479,7]
[344296686,1733331057715,-524.40347482,0.00025479,7]
[344296687,1733331057725,-500.0,0.00025479,7]
[344296688,1733331057735,-548.50732245,0.00025479,7]
[344296689,1733331057746,-1363.71,0.00025479,7]
[344296690,1733331057758,-500.0,0.00025479,7]
[344296691,1733331057768,-151.0,0.00025479,7]
[344296692,1733331057777,-500.0,0.00025479,7]
[344296693,1733331057787,-151.0,0.00025479,7]
[344296694,1733331057796,-650.65,0.00025479,7]
[344296695,1733331057805,-10576.83,0.00025479,7]
[344296696,1733331057814,-500.0,0.00025479,7]
[344296697,1733331057823,-500.0,0.00025479,7]
[344296698,1733331057833,-500.65,0.00025479,7]
[344296699,1733331057843,-510.19988364,0.00025479,7]
[344296700,1733331057852,-500.0,0.00025479,7]
[344296701,1733331057861,-500.0,0.00025479,7]
[344296702,1733331057872,-1115.404548,0.00025479,7]
[344296703,1733331057885,-500.0,0.00025479,7]
[344296704,1733331057894,-350.0111919,0.00025479,7]
[344296705,1733331057904,-612.787327,0.00025479,7]
[344296706,1733331057913,-1115.404548,0.00025479,7]
[344296707,1733331057924,-684.15,0.00025479,7]
[344296708,1733331057933,-612.787327,0.00025479,7]
[344296709,1733331057942,-500.0,0.00025479,7]
[344296710,1733331057952,-510.07458916,0.00025479,7]
[344296711,1733331057963,-500.0,0.00025479,7]
[344296712,1733331057973,-500.0,0.00025479,7]
[344296713,1733331057982,-500.0,0.00025479,7]
[344296714,1733331057992,-500.0,0.00025479,7]
[344296715,1733331058006,-1465.31,0.00025479,7]
[344296716,1733331058016,-606.68,0.00025479,7]
[344296717,1733331058026,-792.7,0.00025479,7]
[344296718,1733331058036,-1072.01,0.00025479,7]
[344296719,1733331058045,-500.0,0.00025479,7]
[344296720,1733331058056,-690.93,0.00025479,7]
[344296721,1733331058065,-500.0,0.00025479,7]
[344296722,1733331058075,-500.0,0.00025479,7]
[344296723,1733331058086,-200.0,0.00025479,7]
[344296724,1733331058095,-500.0,0.00025479,7]
[344296725,1733331058105,-500.0,0.00025479,7]
[344296726,1733331058115,-1130.9,0.00025479,7]
[344296727,1733331058124,-766.18,0.00025479,7]
[344296728,1733331058134,-979.02,0.00025479,7]
[344296729,1733331058146,-500.0,0.00025479,7]
[344296730,1733331058155,-500.0,0.00025479,7]
[344296731,1733331058165,-289.86705205,0.00025479,7]
[344296732,1733331058175,-5398.24,0.00025479,7]
[344296733,1733331058184,-500.0,0.00025479,7]
[344296734,1733331058195,-959.45,0.00025479,7]
[344296735,1733331058205,-637.8,0.00025479,7]
[344296736,1733331058215,-571.56,0.00025479,7]
[344296737,1733331058225,-500.0,0.00025479,7]
[344296738,1733331058235,-12106.03,0.00025479,7]
[344296739,1733331058245,-500.0,0.00025479,7]
[344296740,1733331058257,-500.0,0.00025479,7]
[344296741,1733331058267,-1073.97,0.00025479,7]
[344296742,1733331058277,-500.0,0.00025479,7]
[344296743,1733331058286,-500.0,0.00025479,7]
[344296744,1733331058296,-500.0,0.00025479,7]
[344296745,1733331058305,-3667.14,0.00025479,7]
[344296746,1733331058315,-500.0,0.00025479,7]
[344296747,1733331058328,-500.0,0.00025479,7]
[344296748,1733331058337,-500.0,0.00025479,7]
[344296749,1733331058347,-500.0,0.00025479,7]
[344296750,1733331058357,-500.0,0.00025479,7]
[344296751,1733331058366,-619.76,0.00025479,7]
[344296752,1733331058377,-500.0,0.00025479,7]
[344296753,1733331058386,-500.0,0.00025479,7]
[344296754,1733331058395,-500.0,0.00025479,7]
[344296755,1733331058406,-500.0,0.00025479,7]
[344296756,1733331058416,-500.0,0.00025479,7]
[344296757,1733331058426,-500.0,0.00025479,7]
[344296758,1733331058436,-1922.249001,0.00025479,7]
[344296759,1733331058446,-500.0,0.00025479,7]
[344296760,1733331058456,-1604.41,0.00025479,7]
[344296761,1733331058466,-1922.249001,0.00025479,7]
[344296762,1733331058475,-500.0,0.00025479,7]
[344296763,1733331058485,-564.17,0.00025479,7]
[344296764,1733331058618,-2600.34,0.00025479,7]
[344296765,1733331058631,-653.89,0.00025479,7]
[344296766,1733331058642,-523.19,0.00025479,7]
[344296767,1733331058652,-500.0,0.00025479,7]
[344296768,1733331058663,-500.0,0.00025479,7]
[344296769,1733331058674,-500.0,0.00025479,7]
[344296770,1733331058685,-500.0,0.00025479,7]
[344296771,1733331058697,-500.0,0.00025479,7]
[344296772,1733331058707,-500.0,0.00025479,7]
[344296773,1733331058718,-2252.96,0.00025479,7]
[344296774,1733331058728,-1103.9,0.00025479,7]
[344296775,1733331058739,-200.0,0.00025479,7]
[344296776,1733331058754,-3483.6,0.00025479,7]
[344296777,1733331058766,-500.0,0.00025479,7]
[344296778,1733331058777,-858.72,0.00025479,7]
[344296779,1733331058787,-500.0,0.00025479,7]
[344296780,1733331058798,-998.79,0.00025479,7]
[344296781,1733331058808,-1250.23,0.00025479,7]
[344296782,1733331058819,-500.0,0.00025479,7]
[344296783,1733331058829,-500.0,0.00025479,7]
[344296784,1733331058839,-1250.59,0.00025479,7]
[344296785,1733331058849,-550.71578763,0.00025479,7]
[344296786,1733331058859,-674.47,0.00025479,7]
[344296787,1733331058870,-500.0,0.00025479,7]
[344296788,1733331058883,-417.127008,0.00025479,7]
[344296789,1733331058897,-510.57138883,0.00025479,7]
[344296790,1733331058907,-1017.66,0.00025479,7]
[344296791,1733331058918,-417.127008,0.00025479,7]
[344296792,1733331058928,-1138.79,0.00025479,7]
[344296793,1733331058938,-634.97,0.00025479,7]
[344296794,1733331058949,-500.0,0.00025479,7]
[344296795,1733331058959,-500.0,0.00025479,7]
[344296796,1733331058970,-3400.47,0.00025479,7]
[344296797,1733331058980,-500.0,0.00025479,7]
[344296798,1733331058990,-500.0,0.00025479,7]
[344296799,1733331059002,-2026.96,0.00025479,7]
[344296800,1733331059011,-500.0,0.00025479,7]
[344296801,1733331059021,-500.0,0.00025479,7]
[344296802,1733331059031,-500.0,0.00025479,7]
[344296803,1733331059040,-500.0,0.00025479,7]
[344296804,1733331059050,-1041.8,0.00025479,7]
[344296805,1733331059059,-1115.9,0.00025479,7]
[344296806,1733331059069,-500.0,0.00025479,7]
[344296807,1733331059079,-591.81,0.00025479,7]
[344296808,1733331059088,-500.0,0.00025479,7]
[344296809,1733331059098,-653.03,0.00025479,7]
[344296810,1733331059107,-619.71,0.00025479,7]
[344296811,1733331059117,-1337.24,0.00025479,7]
[344296812,1733331059127,-1180.0,0.00025479,7]
[344296813,1733331059137,-346.38633783,0.00025479,7]
[344296814,1733331059146,-500.0,0.00025479,7]
[344296815,1733331059156,-618.75,0.00025479,7]
[344296816,1733331059165,-500.0,0.00025479,7]
[344296817,1733331059175,-500.0,0.00025479,7]
[344296818,1733331059184,-1246.36,0.00025479,7]
[344296819,1733331059194,-729.23,0.00025479,7]
[344296820,1733331059203,-164.179794,0.00025479,7]
[344296821,1733331059213,-1111.43,0.00025479,7]
[344296822,1733331059222,-500.0,0.00025479,7]
[344296823,1733331059235,-164.179794,0.00025479,7]
[344296824,1733331059248,-688.99,0.00025479,7]
[344296825,1733331059257,-1165.34,0.00025479,7]
[344296826,1733331059267,-516.18,0.00025479,7]
[344296827,1733331059276,-771.77,0.00025479,7]
[344296828,1733331059285,-500.0,0.00025479,7]
[344296829,1733331059294,-176.314,0.00025496,10]
[344296830,1733331059303,-503.16986874,0.00025521,2]
[344296831,1733331059313,-1000.0,0.00025521,2]
[344296832,1733331059322,-501.56826379,0.00025521,2]
[344296833,1733331059332,-1103.03276081,0.00025521,2]
[344296834,1733331059341,-322.98738339,0.00025521,2]
[344296835,1733331059351,-501.82872205,0.00025521,2]
[344296836,1733331059360,-1000.0,0.00025521,2]
[344296837,1733331059369,-160.0,0.00025752,2]
[344296838,1733331059379,-160.0,0.00025752,2]
[344296839,1733331059388,-213.880915,0.00025752,7]
[344296840,1733331059398,-151.0,0.00025753,7]
[344296841,1733331059407,-151.0,0.00025753,7]
[344296842,1733331059417,-151.0,0.00025753,7]
[344296843,1733331059426,-151.0,0.00025753,7]
[344296844,1733331059436,-151.0,0.00025753,7]
[344296845,1733331059445,-151.0,0.00025753,7]
[344296846,1733331059455,-200.194478,0.00025753,7]
[344296847,1733331059464,-151.0,0.00025753,7]
[344296848,1733331059474,-157.754633,0.00025753,7]
[344296849,1733331059484,-157.754633,0.00025753,7]
[344296850,1733331059493,-151.0,0.00025753,7]
[344296851,1733331059506,-151.0,0.00025753,7]
[344296852,1733331059516,-276.506524,0.00025753,7]
[344296853,1733331059526,-151.0,0.00025753,7]
[344296854,1733331059535,-276.506524,0.00025753,7]
[344296855,1733331059545,-500.0,0.00025753,7]
[344296856,1733331059555,-550.48,0.00025753,7]
[344296857,1733331059565,-663.28,0.00025753,7]
[344296858,1733331059575,-500.0,0.00025753,7]
[344296859,1733331059585,-500.0,0.00025753,7]
[344296860,1733331059594,-647.17,0.00025753,7]
[344296861,1733331059603,-501.84404072,0.00025753,7]
[344296862,1733331059612,-500.0,0.00025753,7]
[344296863,1733331059622,-500.0,0.00025753,2]
[344296864,1733331059632,-742.07,0.00025753,7]
[344296865,1733331059641,-500.0,0.00025753,7]
[344296866,1733331059651,-154.163264,0.00025753,7]
[344296867,1733331059660,-154.163264,0.00025753,7]
[344296868,1733331059669,-731.67,0.00025753,7]
[344296869,1733331059678,-500.0,0.00025753,7]
[344296870,1733331059688,-164.382574,0.00025753,7]
[344296871,1733331059697,-500.0,0.00025753,7]
[344296872,1733331059707,-164.382574,0.00025753,7]
[344296873,1733331059716,-794.46,0.00025753,7]
[344296874,1733331059725,-500.0,0.00025753,7]
[344296875,1733331059734,-369.173032,0.00025753,7]
[344296876,1733331059743,-500.0,0.00025753,7]
[344296877,1733331059756,-500.0,0.00025753,7]
[344296878,1733331059766,-369.173032,0.00025753,7]
[344296879,1733331059775,-500.0,0.00025753,7]
[344296880,1733331059785,-500.0,0.00025753,7]
[344296881,1733331059795,-500.0,0.00025753,7]
[344296882,1733331059804,-500.0,0.00025753,7]
[344296883,1733331059813,-500.0,0.00025753,7]
[344296884,1733331059823,-557.44,0.00025753,7]
[344296885,1733331059833,-500.0,0.00025753,7]
[344296886,1733331059843,-500.0,0.00025753,7]
[344296887,1733331059852,-500.0,0.00025753,7]
[344296888,1733331059862,-500.0,0.00025753,7]
[344296889,1733331059873,-500.0,0.00025753,7]
[344296890,1733331059886,-782.05,0.00025753,7]
[344296891,1733331059896,-500.0,0.00025753,7]
[344296892,1733331059907,-500.0,0.00025753,7]
[344296893,1733331059917,-500.0,0.00025753,7]
[344296894,1733331059927,-500.0,0.00025753,7]
[344296895,1733331059936,-510.69278094,0.00025753,7]
[344296896,1733331059946,-241.89558432,0.00025753,7]
[344296897,1733331059957,-500.0,0.00025753,7]
[344296898,1733331059967,-1159.1,0.00025753,7]
[344296899,1733331059977,-238.736578,0.00025753,7]
[344296900,1733331059987,-238.736578,0.00025753,7]
[344296901,1733331059998,-720.5,0.00025753,7]
[344296902,1733331060008,-500.0,0.00025753,7]
[344296903,1733331060019,-500.0,0.00025753,7]
[344296904,1733331060029,-500.0,0.00025753,7]
[344296905,1733331060039,-419.73951541,0.00025753,7]
[344296906,1733331060049,-856.58,0.00025753,7]
[344296907,1733331060059,-500.0,0.00025753,7]
[344296908,1733331060069,-500.0,0.00025753,7]
[344296909,1733331060079,-500.0,0.00025753,7]
[344296910,1733331060088,-500.0,0.00025753,7]
[344296911,1733331060098,-500.0,0.00025753,7]
[344296912,1733331060107,-1402.3,0.00025753,7]
[344296913,1733331060117,-500.0,0.00025753,7]
[344296914,1733331060126,-500.0,0.00025753,7]
[344296915,1733331060135,-500.0,0.00025753,7]
[344296916,1733331060145,-500.0,0.00025753,7]
[344296917,1733331060154,-500.0,0.00025753,7]
[344296918,1733331060163,-572.72,0.00025753,7]
[344296919,1733331060173,-599.55,0.00025753,7]
[344296920,1733331060182,-692.0,0.00025753,7]
[344296921,1733331060192,-1434.53,0.00025753,7]
[344296922,1733331060201,-500.0,0.00025753,7]
[344296923,1733331060211,-500.0,0.00025753,7]
[344296924,1733331060221,-500.0,0.00025753,7]
[344296925,1733331060231,-1335.07,0.00025753,7]
[344296926,1733331060240,-151.0,0.00025753,7]
[344296927,1733331060253,-1241.02,0.00025753,7]
[344296928,1733331060263,-502.21234256,0.00025753,7]
[344296929,1733331060272,-1393.96,0.00025753,7]
[344296930,1733331060283,-351.88014497,0.00025753,7]
[344296931,1733331060293,-500.0,0.00025753,7]
[344296932,1733331060303,-522.4,0.00025753,7]
[344296933,1733331060312,-500.0,0.00025753,7]
[344296934,1733331060321,-500.0,0.00025753,7]
[344296935,1733331060331,-500.0,0.00025753,7]
[344296936,1733331060341,-620.02,0.00025753,7]
[344296937,1733331060351,-500.0,0.00025753,7]
[344296938,1733331060361,-2348.359385,0.00025753,7]
[344296939,1733331060370,-942.07,0.00025753,7]
[344296940,1733331060380,-500.0,0.00025753,7]
[344296941,1733331060389,-500.0,0.00025753,7]
[344296942,1733331060399,-2348.359385,0.00025753,7]
[344296943,1733331060408,-501.38,0.00025753,7]
[344296944,1733331060418,-500.0,0.00025753,7]
[344296945,1733331060427,-500.0,0.00025753,7]
[344296946,1733331060437,-940.36,0.00025753,7]
[344296947,1733331060446,-500.0,0.00025753,7]
[344296948,1733331060456,-500.0,0.00025753,7]
[344296949,1733331060465,-500.0,0.00025753,7]
[344296950,1733331060475,-500.0,0.00025753,7]
[344296951,1733331060485,-500.0,0.00025753,7]
[344296952,1733331060495,-500.0,0.00025753,7]
[344296953,1733331060507,-500.0,0.00025753,7]
[344296954,1733331060517,-500.0,0.00025753,7]
[344296955,1733331060527,-500.0,0.00025753,7]
[344296956,1733331060537,-500.0,0.00025753,7]
[344296957,1733331060547,-500.0,0.00025753,7]
[344296958,1733331060556,-500.0,0.00025753,7]
[344296959,1733331060566,-541.2,0.00025753,7]
[344296960,1733331060575,-500.0,0.00025753,7]
[344296961,1733331060586,-668.95,0.00025753,7]
[344296962,1733331060598,-614.53,0.00025753,7]
[344296963,1733331060607,-500.0,0.00025753,7]
[344296964,1733331060617,-500.0,0.00025753,7]
[344296965,1733331060626,-732.18,0.00025753,7]
[344296966,1733331060636,-500.0,0.00025753,7]
[344296967,1733331060645,-500.0,0.00025753,7]
[344296968,1733331060655,-500.0,0.00025753,7]
[344296969,1733331060665,-500.0,0.00025753,7]
[344296970,1733331060675,-500.0,0.00025753,7]
[344296971,1733331060685,-500.0,0.00025753,7]
[344296972,1733331060696,-500.0,0.00025753,7]
[344296973,1733331060808,-500.0,0.00025753,7]
[344296974,1733331060819,-500.0,0.00025753,7]
[344296975,1733331060829,-500.0,0.00025753,7]
[344296976,1733331060839,-500.0,0.00025753,7]
[344296977,1733331060849,-500.0,0.00025753,7]
[344296978,1733331060859,-1219.41,0.00025753,7]
[344296979,1733331060869,-698.01,0.00025753,7]
[344296980,1733331060880,-500.0,0.00025753,7]
[344296981,1733331060893,-500.0,0.00025753,7]
[344296982,1733331060902,-2033.51,0.00025753,7]
[344296983,1733331060912,-500.0,0.00025753,7]
[344296984,1733331060922,-2896.6,0.00025753,7]
[344296985,1733331060932,-500.0,0.00025753,7]
[344296986,1733331060942,-500.0,0.00025753,7]
[344296987,1733331060952,-248.237745,0.00025753,7]
[344296988,1733331060963,-500.0,0.00025753,7]
[344296989,1733331060972,-500.0,0.00025753,7]
[344296990,1733331060981,-500.0,0.00025753,7]
[344296991,1733331060991,-549.47,0.00025753,7]
[344296992,1733331061003,-500.0,0.00025753,7]
[344296993,1733331061012,-305.86383152,0.00025753,7]
[344296994,1733331061022,-521.79,0.00025753,7]
[344296995,1733331061033,-500.0,0.00025753,7]
[344296996,1733331061043,-1363.71,0.00025753,7]
[344296997,1733331061054,-500.0,0.00025753,7]
[344296998,1733331061063,-151.0,0.00025753,7]
[344296999,1733331061073,-158.3759422,0.00025753,7]
[344297000,1733331061083,-151.0,0.00025753,7]
[344297001,1733331061093,-650.65,0.00025753,7]
[344297002,1733331061103,-10576.83,0.00025753,7]
[344297003,1733331061113,-500.0,0.00025753,7]
[344297004,1733331061123,-333.80877826,0.00025753,7]
[344297005,1733331061133,-500.65,0.00025753,7]
[344297006,1733331061143,-500.0,0.00025753,7]
[344297007,1733331061152,-500.0,0.00025753,7]
[344297008,1733331061162,-612.787327,0.00025753,7]
[344297009,1733331061172,-684.15,0.00025753,7]
[344297010,1733331061181,-612.787327,0.00025753,7]
[344297011,1733331061191,-500.0,0.00025753,7]
[344297012,1733331061201,-500.0,0.00025753,7]
[344297013,1733331061211,-500.0,0.00025753,7]
[344297014,1733331061221,-500.0,0.00025753,7]
[344297015,1733331061231,-500.0,0.00025753,7]
[344297016,1733331061241,-1465.31,0.00025753,7]
[344297017,1733331061254,-606.68,0.00025753,7]
[344297018,1733331061263,-792.7,0.00025753,7]
[344297019,1733331061273,-1072.01,0.00025753,7]
[344297020,1733331061282,-500.0,0.00025753,7]
[344297021,1733331061292,-690.93,0.00025753,7]
[344297022,1733331061302,-500.0,0.00025753,7]
[344297023,1733331061311,-500.0,0.00025753,7]
[344297024,1733331061321,-200.0,0.00025753,7]
[344297025,1733331061330,-508.92234417,0.00025753,7]
[344297026,1733331061340,-500.0,0.00025753,7]
[344297027,1733331061349,-1130.9,0.00025753,7]
[344297028,1733331061360,-766.18,0.00025753,7]
[344297029,1733331061370,-979.02,0.00025753,7]
[344297030,1733331061380,-500.0,0.00025753,7]
[344297031,1733331061390,-500.0,0.00025753,7]
[344297032,1733331061400,-5398.24,0.00025753,7]
[344297033,1733331061410,-500.0,0.00025753,7]
[344297034,1733331061420,-959.45,0.00025753,7]
[344297035,1733331061430,-637.8,0.00025753,7]
[344297036,1733331061440,-571.56,0.00025753,7]
[344297037,1733331061449,-500.0,0.00025753,7]
[344297038,1733331061459,-12106.03,0.00025753,7]
[344297039,1733331061468,-500.0,0.00025753,7]
[344297040,1733331061479,-500.0,0.00025753,7]
[344297041,1733331061488,-1073.97,0.00025753,7]
[344297042,1733331061499,-500.0,0.00025753,7]
[344297043,1733331061508,-500.0,0.00025753,7]
[344297044,1733331061518,-500.0,0.00025753,7]
[344297045,1733331061527,-3667.14,0.00025753,7]
[344297046,1733331061537,-500.0,0.00025753,7]
[344297047,1733331061546,-500.0,0.00025753,7]
[344297048,1733331061555,-500.0,0.00025753,7]
[344297049,1733331061565,-500.0,0.00025753,7]
[344297050,1733331061575,-500.0,0.00025753,7]
[344297051,1733331061584,-619.76,0.00025753,7]
[344297052,1733331061594,-500.0,0.00025753,7]
[344297053,1733331061603,-500.0,0.00025753,7]
[344297054,1733331061613,-500.0,0.00025753,7]
[344297055,1733331061623,-500.0,0.00025753,7]
[344297056,1733331061633,-309.2923842,0.00025753,7]
[344297057,1733331061642,-500.0,0.00025753,7]
[344297058,1733331061652,-500.0,0.00025753,7]
[344297059,1733331061661,-1604.41,0.00025753,7]
[344297060,1733331061672,-500.0,0.00025753,7]
[344297061,1733331061681,-564.17,0.00025753,7]
[344297062,1733331061690,-2600.34,0.00025753,7]